Cogmind - Beta 17 @@@ ROGUE MODE // 2026.07.06 @ 13:26:02 Player: Zish Result: Destroyed by G-34 Mercenary with Small Laser Performance ------------- Evolutions (0) 0 Regions Visited (2) 400 Robots Destroyed (34) 170 Value Destroyed (734) 734 Prototype IDs (0) 0 Alien Tech Used (0) 0 Bonus (0) 0 TOTAL SCORE: 1304 Bonus ------- None Cogmind --------- Core Integrity 0/250 Matter 294/300 Energy 250/250 System Corruption 0% Temperature Cool (6) Movement Treading (160) Location -10/Mines Parts ------- > --- POWER (1) -------- Ion Engine > --- PROPULSION (2) --- Light Treads Light Treads > --- UTILITY (2) ------ Large Storage Unit Targeting Computer > --- WEAPON (2) ------- Assault Rifle Assault Rifle > --- INVENTORY (15) --- Ion Engine Ion Engine Light Nuclear Core Medium Storage Unit Transport Network Coupler Grenade Launcher Rocket Launcher Datajack Datajack Peak State ------------ > --- POWER ------------ Ion Engine > --- PROPULSION ------- Light Treads Light Treads > --- UTILITY ---------- Large Storage Unit Targeting Computer > --- WEAPON ----------- Particle Gun Light Assault Rifle > --- INVENTORY -------- Ion Engine Ion Engine Light Nuclear Core Medium Storage Unit Transport Network Coupler Grenade Launcher Datajack Datajack [Rating: 9] Favorites ----------- Power Ion Engine Engine Ion Engine Propulsion Light Treads Treads Light Treads Utility Large Storage Unit Storage Large Storage Unit Processor Targeting Computer Protection Light Armor Plating Weapon Light Assault Rifle Energy Gun Medium Laser Ballistic Gun Light Assault Rifle Build | -11 -10 -10 ------- Run | Yrd Mat Min Slots Evolved . | . . . Power . | . . . Propulsion . | . . . Utility . | . . . Weapon . | . . . Parts Attached 21 | 6 14 1 Power 4 | 1 3 . Engine 4 | 1 3 . Core . | . . . Reactor . | . . . Propulsion 5 | 2 2 1 Treads 5 | 2 2 1 Leg . | . . . Wheel . | . . . Hover . | . . . Flight . | . . . Utility 4 | 1 3 . Device . | . . . Storage 2 | 1 1 . Processor 1 | . 1 . Hackware . | . . . Protection 1 | . 1 . Artifact . | . . . Weapon 8 | 2 6 . Energy Gun 3 | 1 2 . Energy Cannon . | . . . Ballistic Gun 5 | 1 4 . Ballistic Cannon . | . . . Launcher . | . . . Special Weapon . | . . . Impact Weapon . | . . . Slashing Weapon . | . . . Piercing Weapon . | . . . Special Melee Weapon . | . . . Unidentified Prototypes . | . . . Parts Lost 8 | . 7 1 Power 2 | . 2 . Propulsion 3 | . 2 1 Utility 1 | . 1 . Weapon 2 | . 2 . Highest Loss Streak 6 | . 6 1 To Critical Strikes 1 | . 1 . Average Backups 6 | 1 6 9 Power 2 | . 2 3 Propulsion . | . . . Utility 1 | . 1 2 Weapon . | . . 1 Tool/Special . | . . . Unused Backups 10 | . 1 9 Power 3 | . . 3 Propulsion . | . . . Utility 2 | . . 2 Weapon 3 | . 1 2 Tool/Special 2 | . . 2 Average Slot Usage (%) 97 | . 96 100 Engine 13 | . 13 14 Treads 27 | . 27 28 Storage 14 | . 14 14 Processor 8 | . 8 14 Protection 3 | . 4 . Energy Gun 5 | . 6 . Ballistic Gun 21 | . 20 28 Peak Build Rating 9 | 6 9 8 Average Rating 7 | 5 7 7 On Entrance 4 | . 6 8 Avg Prop Armor Cover (%) . | . . . Naked Turns . | . . . Heaviest Build 29 | 10 29 29 Greatest Support 40 | 40 40 40 Greatest Overweight (x) 1 | 1 . . Average Overweight (x) . | . . . Largest Inventory Capacity 15 | 8 15 15 Average Capacity 14 | 7 14 15 Most Carried 10 | 2 10 10 Average Carried 6 | 1 6 9 Final Capacity 15 | 8 15 15 Final Carried 9 | 2 8 9 Class Distribution -------------------- 100% | Mutant Dominant Class ---------------- Mutant | -10/Materials Mutant | -10/Mines Resources | -11 -10 -10 ----------- Run | Yrd Mat Min Matter Collected 604 | 242 267 95 Remotely . | . . . Salvage Created 888 | . 670 218 Parts 62 | . 44 18 Haulers Intercepted 2 | . 2 . Recyclers Shooed . | . . . Parts Field Recycled . | . . . Retrieved Matter . | . . . Parts Self-Destructed . | . . . Prevented . | . . . Parts Restored . | . . . Kills | -11 -10 -10 ------- Run | Yrd Mat Min Combat Hostiles Destroyed 26 | . 17 9 Guns 24 | . 15 9 AOE 2 | . 2 . Classes Destroyed 7 | . 7 . Worker 1 | . 1 . Tunneler 1 | . 1 . Hauler 2 | . 2 . Operator 3 | . 3 . Watcher 1 | . 1 . Swarmer 12 | . 6 6 Grunt 14 | . 11 3 Best Kill Streak 8 | . 8 4 Combat Bots Only 5 | . 5 4 Max Kills in Single Turn 4 | . 4 1 Gunslinging . | . . . Exploded 2 | . 2 . Melee . | . . . Uniques/NPCs Destroyed . | . . . Combat | -11 -10 -10 -------- Run | Yrd Mat Min Hostile Shots Fired 185 | . 139 46 Missed 51 | . 36 15 Hits 134 | . 103 31 Projectile 134 | . 103 31 Critical Strikes 5 | . 4 1 Damage Taken 1455 | . 1114 341 Core 258 | . 214 44 Absorbed by Shields . | . . . Core Remaining (%) 100 | 100 . . Volleys Fired 84 | . 68 16 Largest 2 | . 2 2 Hottest 85 | . 85 40 Shots Fired 164 | . 132 32 Gun 164 | . 132 32 Cannon . | . . . Launcher . | . . . Special . | . . . Kinetic 126 | . 94 32 Thermal 38 | . 38 . Explosive . | . . . Electromagnetic . | . . . Robot Hit Streak 17 | . 12 17 Robot Miss Streak 5 | . 5 2 Penetration Max . | . . . Secondary Targets 5 | . 3 2 Max Gunslinging Chain 1 | . 1 1 Shots Hit Robots 106 | . 83 23 Core Hits 63 | . 49 14 Critical Kills . | . . . Critical Parts Destroyed . | . . . Critical Strikes 5 | . 5 . Burn 5 | . 5 . Melee Attacks . | . . . Impact . | . . . Slashing . | . . . Piercing . | . . . Sneak Attacks . | . . . Combat Hostiles . | . . . Follow-up Attacks . | . . . Damage Inflicted 1711 | . 1384 327 Guns 1167 | . 840 327 Cannons . | . . . Explosions 540 | . 540 . Melee . | . . . Ramming 4 | . 4 . Kinetic 848 | . 521 327 Thermal 319 | . 319 . Explosive 540 | . 540 . Electromagnetic . | . . . Impact . | . . . Slashing . | . . . Piercing . | . . . Highest Corruption . | . . . Average Corruption . | . . . Corruption Purged . | . . . Corruption Blocked . | . . . Overload Shots . | . . . Overflow Damage 81 | . 81 . Projectiles . | . . . Explosions 81 | . 81 . Melee . | . . . Knockbacks . | . . . Impact . | . . . Kinetic . | . . . Secondary . | . . . Self-Inflicted Damage 89 | . 89 . Shots 1 | . 1 . Rammed 1 | . 1 . Targets Rammed 1 | . 1 . Kicked . | . . . Crushed . | . . . Highest Temperature 271 | . 271 10 Average Temperature 86 | . 91 4 Received Heat Transfer 453 | . 330 123 Effects 1 | . 1 . Energy Bleed 1 | . 1 . Siege Activations . | . . . Martial Activations . | . . . Shielding Activations . | . . . Robots Disrupted . | . . . Combat Hostiles . | . . . Robots Corrupted . | . . . Combat Hostiles . | . . . Parts Fried . | . . . Impact Corruptions . | . . . Robots Melted . | . . . Combat Hostiles . | . . . Parts Melted 2 | . 2 . Heat Transferred 1271 | . 1271 . Parts Sabotaged . | . . . Parts Stolen . | . . . Parts Stripped . | . . . Power Chain Reactions . | . . . Alert | -11 -10 -10 ------- Run | Yrd Mat Min Maximum Alert Level . | . . . Low Security (%) 100 | 100 100 100 Level 1 . | . . . Level 2 . | . . . Level 3 . | . . . Level 4 . | . . . Level 5 . | . . . High Security . | . . . Max Security . | . . . Peak Influence 181 | . 181 157 Initial 27 | . . 27 Average 68 | . 72 71 Influence Increases 738 | . 518 220 Destroy 0b10 Robot/C 520 | . 340 180 Destroy 0b10 Robot/NC 40 | . 40 . Destroy Leader 126 | . 86 40 Successful Hack 6 | . 6 . Disable Machine 15 | . 15 . Destroy Structure 16 | . 16 . Lose Combat Pursuer 15 | . 15 . Influence Decreases 591 | . 446 145 Entered New Map 45 | . . 45 Time Decay 466 | . 376 90 Lost Part 80 | . 70 10 Squads Dispatched 4 | . 4 . Investigation 1 | . 1 . Extermination . | . . . Reinforcement 3 | . 3 . Assault . | . . . Garrison . | . . . Intercept . | . . . Searches Triggered . | . . . Construction Impeded . | . . . Haulers Reinforced . | . . . Active Scanning Responses . | . . . Cargo Convoy Interrupts . | . . . Stealth | -11 -10 -10 --------- Run | Yrd Mat Min Distress Signals 4 | . 4 . Communications Jammed . | . . . Distress Signals . | . . . Times Spotted 39 | . 29 10 Peak Tracking Total 7 | . 7 5 Tactical Retreats 1 | . 1 . Traps | -11 -10 -10 ------- Run | Yrd Mat Min Traps Triggered 2 | . 2 . Indirectly . | . . . Trap Hack Attempts . | . . . Triggered . | . . . Disarmed . | . . . Reprogrammed . | . . . Reused . | . . . Traps Extracted . | . . . Installed . | . . . Triggered . | . . . Machines | -11 -10 -10 ---------- Run | Yrd Mat Min Machines Disabled 1 | . 1 . Max in Single Turn 1 | . 1 . Machines Repaired . | . . . Machines Dismantled . | . . . Machines Sabotaged . | . . . Overloaded Fab Kills . | . . . Hacking | -11 -10 -10 --------- Run | Yrd Mat Min Machines Accessed 3 | . 3 . Terminals 3 | . 3 . Fabricators . | . . . Repair Stations . | . . . Recycling Units . | . . . Scanalyzers . | . . . Garrison Access . | . . . Total Hacks 9 | . 9 . Successful 3 | . 3 . Failed 6 | . 6 . Catastrophic . | . . . Database Lockouts . | . . . Manual 9 | . 9 . Terminals 9 | . 9 . Fabricators . | . . . Repair Stations . | . . . Recycling Units . | . . . Scanalyzers . | . . . Garrison Access . | . . . Terminal Hacks . | . . . Fabricator Hacks . | . . . Repair Station Hacks . | . . . Recycling Unit Hacks . | . . . Scanalyzer . | . . . Garrison Access Hacks . | . . . Unauthorized Hacks 3 | . 3 . Terminals 3 | . 3 . Assimilate 1 | . 1 . Operators 2 | . 2 . Fabricators . | . . . Repair Stations . | . . . Recycling Units . | . . . Scanalyzers . | . . . Garrison Access . | . . . Data Cores Recovered . | . . . Used . | . . . Hacking Detections 2 | . 2 . Full Trace Events . | . . . Feedback Events . | . . . Feedback Blocked . | . . . Robot Schematics Acquired . | . . . Robots Built . | . . . Authchips . | . . . Time . | . . . Total Robot Build Rating . | . . . Part Schematics Acquired . | . . . Parts Built . | . . . Authchips . | . . . Time . | . . . Total Part Build Rating . | . . . Part Studies Acquired . | . . . Parts Repaired . | . . . Time . | . . . Parts Recycled . | . . . Recycled Matter . | . . . Retrieved Matter . | . . . Retrieved Components . | . . . Parts Scanalyzed . | . . . Part Schematics Acquired . | . . . Parts Damaged . | . . . Bothacking | -11 -10 -10 ------------ Run | Yrd Mat Min Used RIF Installer . | . . . Robots Hacked . | . . . Non-combat . | . . . Combat . | . . . Robot Hacks Applied . | . . . Relay Couplers Released . | . . . Fabnet Peak Effective % . | . . . Robots Rewired . | . . . Allies Hacked . | . . . Hacks Repelled . | . . . Allies | -11 -10 -10 -------- Run | Yrd Mat Min Total Allies . | . . . Largest Group . | . . . Highest-Rated Group . | . . . Highest-Rated Ally . | . . . Total Orders . | . . . Ally Attacks . | . . . Total Damage . | . . . Kills . | . . . Allies Corrupted . | . . . Allies Melted . | . . . Intel | -11 -10 -10 ------- Run | Yrd Mat Min Active Infowar (turns) . | . . . Robot Analysis Total . | . . . Derelict Logs Recovered . | . . . Drone Launches . | . . . Drone Recoveries . | . . . Exploration | -11 -10 -10 ------------- Run | Yrd Mat Min Turns Passed 1573 | 77 1312 184 Spaces Moved 772 | 47 647 78 Core 8 | 8 . . Treads 764 | 39 647 78 Legs . | . . . Wheels . | . . . Hover . | . . . Flight . | . . . Fastest Speed 50 | 50 160 160 Average Speed 158 | 142 160 160 Slowest Speed 160 | 160 160 160 Overloaded Moves . | . . . Propulsion Burnouts . | . . . Robots Hopped . | . . . Potential Cave-ins . | . . . Cave-ins Triggered . | . . . Exploration Rate (%) 38 | 5 84 25 Regions Visited 2 Branch Regions 1 Pre-discovered Areas . | . . . Known Exits Taken . | . . . Unknown Exits Taken 2 | 1 1 . Scrap Searched 1 | . . 1 Spaces Dug . | . . . Terrain Destroyed 25 | . 25 . Melee . | . . . Projectile . | . . . AOE 25 | . 25 . Terrain Rammed . | . . . Walls Destroyed . | . . . Machines Disabled . | . . . Actions | -11 -10 -10 --------- Run | Yrd Mat Min Total 971 | 54 810 107 Wait 63 | . 53 10 Move 770 | 46 646 78 Hop . | . . . Pick Up 18 | 2 14 2 Fast Attach 12 | 6 6 . Attach 9 | . 8 1 Detach 6 | . 6 . Swap 1 | . 1 . Drop 7 | . 7 . Fire 84 | . 68 16 Melee . | . . . Ram . | . . . Kick . | . . . Crush 1 | . 1 . Escape Stasis . | . . . Rewire . | . . . Trap . | . . . Miscellaneous . | . . . Route ------- -11/Scrapyard -10/Materials (discovered 5 exits: [*Mat x3] / [*Min x2]) -10/Mines History --------- Turn | Location | Event 9 | -11/Scrapyard | Discovered new exit (range 16) 78 | -11/Scrapyard | Entered Materials 149 | -10/Materials | Discovered new exit (range 16) 264 | -10/Materials | Discovered new exit (range 13) 314 | -10/Materials | Discovered new exit (range 5) 317 | -10/Materials | Build established: Mutant 549 | -10/Materials | Core integrity fell below 50% 579 | -10/Materials | Discovered new exit (range 15) 590 | -10/Materials | Lost 6 parts (1p2n1u2w) 744 | -10/Materials | Core integrity fell below 20% 879 | -10/Materials | Discovered new exit (range 10) 1390 | -10/Materials | Entered Mines 1485 | -10/Mines | Received a Rocket Launcher from a helpful Derelict 1574 | -10/Mines | Destroyed by G-34 Mercenary with Small Laser Last Messages --------------- Done. Need a big hole in the wall? Done." 01484_ N7-BXQ(g): "Need a small hole in the wall? Leave that to the mining laser wimps, I say!" 01485_ N7-BXQ(g): "Would you like a rocket launcher? I know I would if I were you, so I'm going to lend you mine." 01485_ N7-BXQ(g) slips back into the shadows. 01488_ Acquired Rocket Launcher. 01517_ G-47 Trooper destroyed. 01520_ G-34 Mercenary destroyed. 01524_ Acquired 36 matter. 01549_ S-10 Pest destroyed. 01555_ G-47 Trooper destroyed. 01558_ S-10 Pest destroyed. 01560_ Lgt. Treads destroyed. 01561_ S-10 Pest destroyed. 01565_ Acquired 30 matter. 01567_ R-06 Scavenger collects Particle Gun. 01567_ Acquired 5 matter. Map ----- +----------------------------------------------------+ | ????????????????????????????????# ? ????? ??# | | ????????????????????????????????# ## #????? ??# | | ????????????????????????????????# ## #????? ??# | | ????????????????????????????????# ## #?????# ??# | | ????????????????????????????????# ## #?????# #?## | | ????????????????????????????????# ## #?????# ### | | ????????????????????????????????# ## #?????#*## | | ???????????????????????????????## ## ##?####=[% | | ??????????????????????????????## ### %%[## | | ??????????????????????????????# ##!%#### | | ??????????????????????????????# ##=%##### | | ?????????????????????????????## # #### | | ?????????????????????????????# ## #?? | | ?????????????????????????????# ### #?? | | ?????????????????????????????## ### #? | | ????????????????????### ####### ### #? | | ????????????????????# #?####### #? | | ????????????????????# $ ##???????? #? | | ????????????????????# ######### ##????????? ## | | ????????????????????#??????????## ##????????? | | ????????????????????# ??????????# #????????? | | ????????????????????# ?????????# #????????# # | | ??????????? ??????## g##????#### ######### # | | ?????????? ## #####==% ## | | ?????????? [ =####### ##??? | | ?????????? @ %*=#?????#[! ##???? | | ?????????? ## #####????##%** ##????? | | ?????????????????????## #????#### == #?????? | | ??????????????????????## #??## #?????? | | ???????????????????????## ##??# ##?????? | | ????????????????????????#####???# ####??????? | | ????????????????????????????????# ##?????????? | | ????????????????????????????????# #??????????? | | ????????????????????????????????# #??????????? | | ????????????????????????????????## ##??????????? | | ?????????????????????????????????#####???????????? | | ?????????????????????????????????????????????????? | | ?????????????????????????????????????????????????? | | ?????????????????????????????????????????????????? | | ?????????????????????????????????????????????????? | | ?????????????????????????????????????????????????? | | ?????????????????????????????????????????????????? | | ?????????????????????????????????????????????????? | | ?????????????????????????????????????????????????? | | ?????????????????????????????????????????????????? | | ?????????????????????????????????????????????????? | | ?????????????????????????????????????????????????? | | ?????????????????????????????????????????????????? | | ?????????????????????????????????????????????????? | | ?????????????????????????????????????????????????? | +----------------------------------------------------+ Best States ------------- Heat Dissipation 25 Energy Generation 10 Energy Capacity 250 Matter Stores 300 Matter Capacity 300 Sight Range 16 Terrain Scan Density 10 Armor Coverage 150 Evasion (%) 40 Targeting Accuracy 5 Recoil Reduction 2 Item Schematics ----------------- None Robot Schematics ------------------ None Fabricated ------------ Nothing Repaired ---------- Nothing Studied --------- None Alien Tech Used ----------------- None Achievements -------------- None Challenges ------------ None Game ------ Seed MetamassLauncherRegenerator Manual? 0 Play Time 00:10:30 Cumulative 32.6 hours Start 2026.07.06 @ 13:16:25 End 2026.07.06 @ 13:26:02 Sessions 1 Manual Loads 0 Difficulty Rogue Special Mode None Game No. 93 Rogue 93 Adventurer 0 Explorer 0 Win Type - Total 0 Types 0/0/0/0/0/0/0/0/0/0 Lore% 18 Gallery% 28 Achievement% 22 Wizard Run 0 Options --------- Layout 1 ASCII 0 Keyboard 1 Movement Vi Keybinds 0 Fullscreen 1 Font 24/Smallcaps Map View 50x35 Zoom Use 0% Tactical HUD 1 Map Filters NONE Filters NONE Steam 1 RUN: d005ffd3-8ce8-4e23-ba9f-d874b216a910